[Event "Early-Titled-Tuesday-Blitz-February-13-2024"]
[Site "Chess.com"]
[Date "2024.02.13"]
[Round "10"]
[White "UK_23"]
[Black "Mariia89"]
[Result "1-0"]
[WhiteElo "2370"]
[BlackElo "2203"]
[TimeControl "180+1"]
[EndTime "9:59:36 PST"]
[Termination "UK_23 won by checkmate"]

1. e4 {[%clk 0:03:00.9]} 1... c6 {[%clk 0:02:59.5]} 2. Nc3 {[%clk 0:03:00]} 2...
d5 {[%clk 0:03:00.4]} 3. Nf3 {[%clk 0:03:00.6]} 3... dxe4 {[%clk 0:03:00.5]} 4.
Nxe4 {[%clk 0:03:01.5]} 4... Nf6 {[%clk 0:03:00.5]} 5. Qe2 {[%clk 0:02:53.3]}
5... Nxe4 {[%clk 0:02:59.3]} 6. Qxe4 {[%clk 0:02:53.4]} 6... Qd5 {[%clk
0:02:59.5]} 7. Qf4 {[%clk 0:02:52.7]} 7... Bf5 {[%clk 0:02:50.2]} 8. c4 {[%clk
0:02:46.2]} 8... Qe4+ {[%clk 0:02:45]} 9. Qxe4 {[%clk 0:02:46.4]} 9... Bxe4
{[%clk 0:02:45.7]} 10. Be2 {[%clk 0:02:44.2]} 10... c5 {[%clk 0:02:41.1]} 11. d3
{[%clk 0:02:43.8]} 11... Bf5 {[%clk 0:02:36.9]} 12. d4 {[%clk 0:02:38.4]} 12...
e6 {[%clk 0:02:33.2]} 13. Be3 {[%clk 0:02:34.9]} 13... Nd7 {[%clk 0:02:32.3]}
14. O-O {[%clk 0:02:34]} 14... O-O-O {[%clk 0:02:29.1]} 15. a3 {[%clk
0:02:23.8]} 15... Be4 {[%clk 0:02:21.5]} 16. Rfd1 {[%clk 0:02:20]} 16... Be7
{[%clk 0:02:14.6]} 17. Rac1 {[%clk 0:02:15.7]} 17... Bf6 {[%clk 0:02:11.1]} 18.
Ng5 {[%clk 0:02:11.7]} 18... Bg6 {[%clk 0:02:09.5]} 19. b4 {[%clk 0:02:02.7]}
19... cxd4 {[%clk 0:02:02.9]} 20. Rxd4 {[%clk 0:01:57.6]} 20... Bxd4 {[%clk
0:02:00]} 21. Bxd4 {[%clk 0:01:58.5]} 21... Rhg8 {[%clk 0:01:55.2]} 22. Bxa7
{[%clk 0:01:54.8]} 22... h6 {[%clk 0:01:51]} 23. Nf3 {[%clk 0:01:54.6]} 23... b6
{[%clk 0:01:39.7]} 24. c5 {[%clk 0:01:53.1]} 24... bxc5 {[%clk 0:01:35.6]} 25.
Bxc5 {[%clk 0:00:57.2]} 25... Nxc5 {[%clk 0:01:34.7]} 26. Rxc5+ {[%clk
0:00:58.1]} 26... Kb7 {[%clk 0:01:34.6]} 27. Ne5 {[%clk 0:00:52.9]} 27... Rd2
{[%clk 0:01:32.5]} 28. Bf3+ {[%clk 0:00:53.1]} 28... Ka7 {[%clk 0:01:30.1]} 29.
Rc7+ {[%clk 0:00:49.2]} 29... Kb8 {[%clk 0:01:30.1]} 30. Rb7+ {[%clk 0:00:23.7]}
30... Kc8 {[%clk 0:01:25]} 31. Ra7 {[%clk 0:00:23.9]} 31... Rc2 {[%clk
0:00:37.9]} 32. h4 {[%clk 0:00:17.5]} 32... Rd8 {[%clk 0:00:36.5]} 33. Nc6
{[%clk 0:00:12.6]} 33... Rdd2 {[%clk 0:00:32.4]} 34. Ne7+ {[%clk 0:00:08.9]}
34... Kb8 {[%clk 0:00:30.8]} 35. Rb7+ {[%clk 0:00:06.2]} 35... Ka8 {[%clk
0:00:29.2]} 36. a4 {[%clk 0:00:01.2]} 36... e5 {[%clk 0:00:17.8]} 37. Rb6+
{[%clk 0:00:01.7]} 37... Ka7 {[%clk 0:00:16.8]} 38. a5 {[%clk 0:00:01.9]} 38...
e4 {[%clk 0:00:14.1]} 39. Bg4 {[%clk 0:00:01.8]} 39... Rc7 {[%clk 0:00:09.9]}
40. Nc6+ {[%clk 0:00:02]} 40... Ka8 {[%clk 0:00:08.6]} 41. Rb8# {[%clk
0:00:01.9]} 1-0

[Event "Early-Titled-Tuesday-Blitz-February-13-2024"]
[Site "Chess.com"]
[Date "2024.02.13"]
[Round "10"]
[White "FoxOnTheRun97"]
[Black "maciek_92"]
[Result "1-0"]
[WhiteElo "2679"]
[BlackElo "2804"]
[TimeControl "180+1"]
[EndTime "9:59:37 PST"]
[Termination "FoxOnTheRun97 won on time"]

1. d4 {[%clk 0:03:00.9]} 1... f5 {[%clk 0:02:57.9]} 2. c4 {[%clk 0:02:59.1]}
2... Nf6 {[%clk 0:02:50.8]} 3. Nc3 {[%clk 0:02:57.5]} 3... e6 {[%clk 0:02:50.2]}
4. g3 {[%clk 0:02:54.5]} 4... Bb4 {[%clk 0:02:49.7]} 5. Bg2 {[%clk 0:02:53.1]}
5... O-O {[%clk 0:02:50.1]} 6. Nf3 {[%clk 0:02:52.6]} 6... d6 {[%clk 0:02:45.6]}
7. O-O {[%clk 0:02:47]} 7... Bxc3 {[%clk 0:02:45]} 8. bxc3 {[%clk 0:02:46.5]}
8... Nbd7 {[%clk 0:02:44.1]} 9. Rb1 {[%clk 0:02:26]} 9... Qe7 {[%clk 0:02:29.3]}
10. Nd2 {[%clk 0:01:57.1]} 10... e5 {[%clk 0:02:17.3]} 11. Bxb7 {[%clk
0:01:53.1]} 11... Bxb7 {[%clk 0:02:16.2]} 12. Rxb7 {[%clk 0:01:54]} 12... Rac8
{[%clk 0:02:00.3]} 13. Rxa7 {[%clk 0:01:43]} 13... f4 {[%clk 0:01:55.9]} 14. c5
{[%clk 0:01:28.4]} 14... e4 {[%clk 0:01:47.7]} 15. cxd6 {[%clk 0:00:51.8]} 15...
cxd6 {[%clk 0:01:48.6]} 16. Qb3+ {[%clk 0:00:49.3]} 16... Kh8 {[%clk 0:01:47.7]}
17. Ba3 {[%clk 0:00:41.5]} 17... e3 {[%clk 0:01:43.7]} 18. Nf3 {[%clk
0:00:39.1]} 18... exf2+ {[%clk 0:01:42.8]} 19. Rxf2 {[%clk 0:00:36.5]} 19... Ne4
{[%clk 0:01:37.5]} 20. Rg2 {[%clk 0:00:32.7]} 20... Nxc3 {[%clk 0:01:27.9]} 21.
Ne5 {[%clk 0:00:22.9]} 21... fxg3 {[%clk 0:00:53.6]} 22. Rxd7 {[%clk 0:00:22.1]}
22... Qh4 {[%clk 0:00:52.9]} 23. Nf7+ {[%clk 0:00:13.7]} 23... Rxf7 {[%clk
0:00:52.4]} 24. Qxf7 {[%clk 0:00:12.4]} 24... Qxd4+ {[%clk 0:00:31.7]} 25. Kh1
{[%clk 0:00:11.7]} 25... Nb5 {[%clk 0:00:29.1]} 26. hxg3 {[%clk 0:00:06.3]}
26... Nxa3 {[%clk 0:00:26.9]} 27. Rf2 {[%clk 0:00:05.1]} 27... h6 {[%clk
0:00:21.2]} 28. Kh2 {[%clk 0:00:04.9]} 28... Nc2 {[%clk 0:00:13.5]} 29. Re7
{[%clk 0:00:04.8]} 29... Ne3 {[%clk 0:00:06.7]} 30. Re8+ {[%clk 0:00:04.3]}
30... Rxe8 {[%clk 0:00:07]} 31. Qxe8+ {[%clk 0:00:04.9]} 31... Kh7 {[%clk
0:00:07.9]} 32. Qf7 {[%clk 0:00:05.4]} 32... Ng4+ {[%clk 0:00:08]} 33. Kg2
{[%clk 0:00:05.9]} 33... Ne3+ {[%clk 0:00:04.8]} 34. Kg1 {[%clk 0:00:04.7]}
34... Qa1+ {[%clk 0:00:03.7]} 35. Kh2 {[%clk 0:00:04.3]} 35... Qe5 {[%clk
0:00:04.2]} 36. Qf4 {[%clk 0:00:03.7]} 36... Qh5+ {[%clk 0:00:02.8]} 37. Kg1
{[%clk 0:00:04.1]} 37... Qc5 {[%clk 0:00:02.7]} 38. Qe4+ {[%clk 0:00:04.1]}
38... Kg8 {[%clk 0:00:02.6]} 39. Kh2 {[%clk 0:00:04.1]} 39... d5 {[%clk
0:00:02.3]} 40. Qe6+ {[%clk 0:00:03.9]} 40... Kh7 {[%clk 0:00:01.9]} 41. Qf7
{[%clk 0:00:03.4]} 1-0

[Event "Early-Titled-Tuesday-Blitz-February-13-2024"]
[Site "Chess.com"]
[Date "2024.02.13"]
[Round "10"]
[White "NikitaShnadrygin"]
[Black "HajiyevKanan"]
[Result "0-1"]
[WhiteElo "2623"]
[BlackElo "2527"]
[TimeControl "180+1"]
[EndTime "9:59:37 PST"]
[Termination "HajiyevKanan won by checkmate"]

1. e4 {[%clk 0:03:00.9]} 1... c6 {[%clk 0:02:59.4]} 2. d4 {[%clk 0:03:00.4]}
2... d5 {[%clk 0:03:00.3]} 3. f3 {[%clk 0:02:57.8]} 3... Qb6 {[%clk 0:02:57.4]}
4. Nc3 {[%clk 0:02:53.7]} 4... e6 {[%clk 0:02:57.7]} 5. Nge2 {[%clk 0:02:37]}
5... Nf6 {[%clk 0:02:47.8]} 6. Be3 {[%clk 0:02:10.1]} 6... Qxb2 {[%clk
0:02:42.7]} 7. Rb1 {[%clk 0:02:10.1]} 7... Qa3 {[%clk 0:02:42.8]} 8. g3 {[%clk
0:02:00.5]} 8... dxe4 {[%clk 0:02:40.6]} 9. Rb3 {[%clk 0:01:56.7]} 9... Qa5
{[%clk 0:02:38.2]} 10. fxe4 {[%clk 0:01:50.9]} 10... Nxe4 {[%clk 0:02:38]} 11.
Bg2 {[%clk 0:01:51.5]} 11... Nxc3 {[%clk 0:02:34.1]} 12. Nxc3 {[%clk 0:01:52.4]}
12... Bb4 {[%clk 0:02:34]} 13. Bd2 {[%clk 0:01:52.7]} 13... O-O {[%clk
0:02:21.8]} 14. O-O {[%clk 0:01:51.5]} 14... Nd7 {[%clk 0:02:07.5]} 15. Qg4
{[%clk 0:01:31.4]} 15... f5 {[%clk 0:01:50.2]} 16. Qe2 {[%clk 0:01:26.5]} 16...
Nf6 {[%clk 0:01:40.5]} 17. Rfb1 {[%clk 0:00:59.7]} 17... Bxc3 {[%clk 0:01:25.9]}
18. Rxc3 {[%clk 0:00:59.8]} 18... Qxa2 {[%clk 0:01:12]} 19. Rcb3 {[%clk
0:00:27]} 19... Qxc2 {[%clk 0:01:04.3]} 20. R1b2 {[%clk 0:00:20.9]} 20... Qxb2
{[%clk 0:00:52.2]} 21. Rxb2 {[%clk 0:00:20.5]} 21... a5 {[%clk 0:00:49.3]} 22.
Ra2 {[%clk 0:00:18.6]} 22... a4 {[%clk 0:00:43.9]} 23. Qc4 {[%clk 0:00:18.2]}
23... Nd5 {[%clk 0:00:34.1]} 24. Bxd5 {[%clk 0:00:09.9]} 24... exd5 {[%clk
0:00:35]} 25. Qb4 {[%clk 0:00:09.9]} 25... Re8 {[%clk 0:00:33.6]} 26. Bf4 {[%clk
0:00:09.3]} 26... b5 {[%clk 0:00:24.1]} 27. Be5 {[%clk 0:00:09.4]} 27... Re6
{[%clk 0:00:21.1]} 28. Qc5 {[%clk 0:00:08.9]} 28... h6 {[%clk 0:00:17.7]} 29.
Qb6 {[%clk 0:00:08.7]} 29... Rg6 {[%clk 0:00:03.1]} 30. Qc7 {[%clk 0:00:07.4]}
30... Kh7 {[%clk 0:00:03.8]} 31. Kf2 {[%clk 0:00:06.3]} 31... b4 {[%clk
0:00:04.3]} 32. Qb6 {[%clk 0:00:03.9]} 32... b3 {[%clk 0:00:04.9]} 33. Ra3
{[%clk 0:00:04.3]} 33... f4 {[%clk 0:00:05.1]} 34. Bxf4 {[%clk 0:00:03.7]} 34...
Bf5 {[%clk 0:00:05.6]} 35. Qc5 {[%clk 0:00:04]} 35... Bd3 {[%clk 0:00:05.6]} 36.
Qc3 {[%clk 0:00:03.8]} 36... Bb5 {[%clk 0:00:05.9]} 37. Ra1 {[%clk 0:00:03.8]}
37... Rf8 {[%clk 0:00:06.6]} 38. Rb1 {[%clk 0:00:03.2]} 38... Re6 {[%clk
0:00:07.2]} 39. Kg1 {[%clk 0:00:02.7]} 39... Re2 {[%clk 0:00:07.2]} 40. h4
{[%clk 0:00:03.4]} 40... Rfe8 {[%clk 0:00:07.6]} 41. h5 {[%clk 0:00:02.4]} 41...
R8e4 {[%clk 0:00:08.5]} 42. Qb4 {[%clk 0:00:02.4]} 42... Rc2 {[%clk 0:00:09.1]}
43. Be5 {[%clk 0:00:02.6]} 43... Ree2 {[%clk 0:00:09.7]} 44. Qe7 {[%clk
0:00:03]} 44... Rg2+ {[%clk 0:00:09.9]} 45. Kh1 {[%clk 0:00:03.7]} 45... Rh2+
{[%clk 0:00:09.8]} 46. Kg1 {[%clk 0:00:04.4]} 46... Rcg2# {[%clk 0:00:10.5]} 0-1

[Event "Early-Titled-Tuesday-Blitz-February-13-2024"]
[Site "Chess.com"]
[Date "2024.02.13"]
[Round "10"]
[White "Elsa167"]
[Black "Hanging_pointer"]
[Result "0-1"]
[WhiteElo "2894"]
[BlackElo "2669"]
[TimeControl "180+1"]
[EndTime "9:59:38 PST"]
[Termination "Hanging_pointer won on time"]

1. e4 {[%clk 0:03:00.9]} 1... c6 {[%clk 0:03:00.2]} 2. d4 {[%clk 0:02:59.4]}
2... d5 {[%clk 0:03:01.1]} 3. e5 {[%clk 0:02:59.7]} 3... Bf5 {[%clk 0:03:00.9]}
4. g4 {[%clk 0:02:58.9]} 4... Bc8 {[%clk 0:03:00.1]} 5. f4 {[%clk 0:02:55.4]}
5... e6 {[%clk 0:02:56.7]} 6. Nf3 {[%clk 0:02:53.5]} 6... h5 {[%clk 0:02:56.1]}
7. gxh5 {[%clk 0:02:50.6]} 7... Nh6 {[%clk 0:02:45.8]} 8. Bd3 {[%clk 0:02:47.9]}
8... c5 {[%clk 0:02:41.3]} 9. c3 {[%clk 0:02:46.1]} 9... Nc6 {[%clk 0:02:40.9]}
10. Be3 {[%clk 0:02:46.1]} 10... Ng4 {[%clk 0:02:38.1]} 11. Bg1 {[%clk
0:02:42.8]} 11... Rxh5 {[%clk 0:02:38.2]} 12. Ng5 {[%clk 0:02:32.5]} 12... Rh4
{[%clk 0:02:16.5]} 13. Qf3 {[%clk 0:02:27.9]} 13... Be7 {[%clk 0:02:16.7]} 14.
Nd2 {[%clk 0:02:10.7]} 14... cxd4 {[%clk 0:02:12.7]} 15. cxd4 {[%clk 0:02:09.8]}
15... Nb4 {[%clk 0:02:11.3]} 16. Bb1 {[%clk 0:01:49.5]} 16... Bxg5 {[%clk
0:02:09.6]} 17. fxg5 {[%clk 0:01:50.4]} 17... Qxg5 {[%clk 0:02:10]} 18. a3
{[%clk 0:01:38]} 18... Nc6 {[%clk 0:02:09.3]} 19. Bd3 {[%clk 0:01:37.6]} 19...
Bd7 {[%clk 0:02:07.1]} 20. O-O-O {[%clk 0:01:37.7]} 20... Ngxe5 {[%clk 0:01:58]}
21. dxe5 {[%clk 0:01:36]} 21... Nxe5 {[%clk 0:01:58.9]} 22. Qe2 {[%clk
0:01:31.4]} 22... Nxd3+ {[%clk 0:01:56.2]} 23. Qxd3 {[%clk 0:01:31.8]} 23...
Rc8+ {[%clk 0:01:47]} 24. Kb1 {[%clk 0:01:31.8]} 24... e5 {[%clk 0:01:40.4]} 25.
Nf3 {[%clk 0:01:21.8]} 25... Rh3 {[%clk 0:01:37.9]} 26. Nxg5 {[%clk 0:00:32.4]}
26... Rxd3 {[%clk 0:01:38.8]} 27. Rxd3 {[%clk 0:00:33]} 27... Bf5 {[%clk
0:01:38.6]} 28. Bxa7 {[%clk 0:00:30.7]} 28... Bxd3+ {[%clk 0:01:38]} 29. Ka2
{[%clk 0:00:27]} 29... f6 {[%clk 0:01:36]} 30. Ne6 {[%clk 0:00:23.8]} 30... d4
{[%clk 0:01:33.2]} 31. Nxg7+ {[%clk 0:00:18.4]} 31... Kf7 {[%clk 0:01:33.5]} 32.
Nh5 {[%clk 0:00:19.2]} 32... Rc2 {[%clk 0:01:32.3]} 33. Bb6 {[%clk 0:00:15.3]}
33... Ke6 {[%clk 0:01:25.8]} 34. Bd8 {[%clk 0:00:13.3]} 34... f5 {[%clk
0:01:23.2]} 35. h4 {[%clk 0:00:13.7]} 35... Bc4+ {[%clk 0:01:20.7]} 36. Kb1
{[%clk 0:00:13]} 36... Rg2 {[%clk 0:01:20.4]} 37. Bg5 {[%clk 0:00:12.9]} 37...
f4 {[%clk 0:01:11.3]} 38. Bxf4 {[%clk 0:00:11.5]} 38... Be2 {[%clk 0:01:11.4]}
39. Bxe5 {[%clk 0:00:06.1]} 39... Kxe5 {[%clk 0:01:06.9]} 40. Re1 {[%clk
0:00:06.3]} 40... d3 {[%clk 0:01:05.6]} 41. Kc1 {[%clk 0:00:06.8]} 41... Kd4
{[%clk 0:01:02.8]} 42. Nf4 {[%clk 0:00:06.5]} 42... Rh2 {[%clk 0:00:34.1]} 43.
Nxe2+ {[%clk 0:00:06.8]} 43... dxe2 {[%clk 0:00:33.4]} 44. Kd2 {[%clk
0:00:07.1]} 44... b5 {[%clk 0:00:31.9]} 45. Rxe2 {[%clk 0:00:05.4]} 45... Rxh4
{[%clk 0:00:32]} 46. Re8 {[%clk 0:00:03.8]} 46... Kc5 {[%clk 0:00:32]} 47. Kc3
{[%clk 0:00:03.1]} 47... Rh3+ {[%clk 0:00:32.3]} 48. Kc2 {[%clk 0:00:03.3]}
48... Kc6 {[%clk 0:00:32.7]} 49. Re6+ {[%clk 0:00:03]} 49... Kc5 {[%clk
0:00:32.7]} 50. b4+ {[%clk 0:00:02.3]} 50... Kd5 {[%clk 0:00:32.7]} 51. Ra6
{[%clk 0:00:01.9]} 51... Kc4 {[%clk 0:00:30.9]} 0-1

[Event "Early-Titled-Tuesday-Blitz-February-13-2024"]
[Site "Chess.com"]
[Date "2024.02.13"]
[Round "10"]
[White "ProfessorChess101"]
[Black "colegiodemadrid"]
[Result "1-0"]
[WhiteElo "2801"]
[BlackElo "2565"]
[TimeControl "180+1"]
[EndTime "9:59:38 PST"]
[Termination "ProfessorChess101 won on time"]

1. d4 {[%clk 0:03:00.9]} 1... d5 {[%clk 0:02:58.7]} 2. c4 {[%clk 0:02:59.4]}
2... c6 {[%clk 0:02:58.7]} 3. cxd5 {[%clk 0:02:59.5]} 3... cxd5 {[%clk 0:02:59]}
4. Nc3 {[%clk 0:03:00.2]} 4... e5 {[%clk 0:02:59.4]} 5. dxe5 {[%clk 0:02:53.6]}
5... d4 {[%clk 0:02:59.3]} 6. Ne4 {[%clk 0:02:52.5]} 6... Qa5+ {[%clk
0:02:59.6]} 7. Nd2 {[%clk 0:02:50.3]} 7... Nc6 {[%clk 0:02:59.5]} 8. g3 {[%clk
0:02:41.4]} 8... h5 {[%clk 0:02:55.2]} 9. h4 {[%clk 0:02:39.1]} 9... Nh6 {[%clk
0:02:49.7]} 10. Nf3 {[%clk 0:02:37.5]} 10... Ng4 {[%clk 0:02:49]} 11. Bg2 {[%clk
0:02:35.1]} 11... Be6 {[%clk 0:02:41.1]} 12. O-O {[%clk 0:02:34]} 12... O-O-O
{[%clk 0:02:31.8]} 13. a3 {[%clk 0:02:27.9]} 13... Be7 {[%clk 0:02:12.8]} 14.
Ne4 {[%clk 0:02:18.2]} 14... Ngxe5 {[%clk 0:02:07.9]} 15. Bf4 {[%clk 0:02:13.2]}
15... Ng4 {[%clk 0:01:58.7]} 16. b4 {[%clk 0:02:11]} 16... Qd5 {[%clk
0:01:49.6]} 17. Nfg5 {[%clk 0:02:02.9]} 17... Qb3 {[%clk 0:01:47.1]} 18. Nxe6
{[%clk 0:01:47.7]} 18... Qxd1 {[%clk 0:01:45.6]} 19. Rfxd1 {[%clk 0:01:48.6]}
19... fxe6 {[%clk 0:01:45.2]} 20. b5 {[%clk 0:01:48.7]} 20... e5 {[%clk
0:01:29.2]} 21. Bd2 {[%clk 0:01:36.7]} 21... Nb8 {[%clk 0:01:21.2]} 22. Rac1+
{[%clk 0:01:23.3]} 22... Kd7 {[%clk 0:01:21.1]} 23. Bh3 {[%clk 0:01:24]} 23...
Ke8 {[%clk 0:01:07.9]} 24. Rc7 {[%clk 0:01:21.4]} 24... Rd7 {[%clk 0:01:06.5]}
25. Rdc1 {[%clk 0:01:09.2]} 25... Bxa3 {[%clk 0:01:05.5]} 26. Rc8+ {[%clk
0:01:06.4]} 26... Rd8 {[%clk 0:01:04.5]} 27. R1c7 {[%clk 0:00:48.3]} 27... Rf8
{[%clk 0:00:18.8]} 28. Rxd8+ {[%clk 0:00:26.7]} 28... Kxd8 {[%clk 0:00:19.7]}
29. Rxg7 {[%clk 0:00:22.7]} 29... Nd7 {[%clk 0:00:15.4]} 30. f3 {[%clk
0:00:22.4]} 30... Ngf6 {[%clk 0:00:14.2]} 31. Ng5 {[%clk 0:00:17.3]} 31... Re8
{[%clk 0:00:07.6]} 32. g4 {[%clk 0:00:15.1]} 32... hxg4 {[%clk 0:00:06.8]} 33.
fxg4 {[%clk 0:00:15.5]} 33... e4 {[%clk 0:00:07.3]} 34. Bf4 {[%clk 0:00:12.3]}
34... Nd5 {[%clk 0:00:06]} 35. Bg3 {[%clk 0:00:10.1]} 35... d3 {[%clk
0:00:06.1]} 36. exd3 {[%clk 0:00:09.7]} 36... exd3 {[%clk 0:00:07]} 37. Nf3
{[%clk 0:00:08.6]} 37... Re2 {[%clk 0:00:03.4]} 38. g5 {[%clk 0:00:07.8]} 38...
d2 {[%clk 0:00:03.6]} 39. Rxd7+ {[%clk 0:00:07.7]} 39... Ke8 {[%clk 0:00:04]}
40. Rxd5 {[%clk 0:00:08.2]} 1-0

[Event "Early-Titled-Tuesday-Blitz-February-13-2024"]
[Site "Chess.com"]
[Date "2024.02.13"]
[Round "10"]
[White "Harry_Rakkel"]
[Black "Dinamo3"]
[Result "1-0"]
[WhiteElo "2682"]
[BlackElo "2530"]
[TimeControl "180+1"]
[EndTime "9:59:41 PST"]
[Termination "Harry_Rakkel won on time"]

1. e4 {[%clk 0:03:00.9]} 1... c5 {[%clk 0:02:55.7]} 2. Nf3 {[%clk 0:03:00.4]}
2... Nc6 {[%clk 0:02:53.3]} 3. d4 {[%clk 0:02:59.9]} 3... cxd4 {[%clk
0:02:53.7]} 4. Nxd4 {[%clk 0:03:00.6]} 4... g6 {[%clk 0:02:54.3]} 5. c4 {[%clk
0:02:59.5]} 5... Nf6 {[%clk 0:02:54.4]} 6. Nc3 {[%clk 0:02:58.9]} 6... Nxd4
{[%clk 0:02:54.9]} 7. Qxd4 {[%clk 0:02:58.4]} 7... d6 {[%clk 0:02:55.6]} 8. Be2
{[%clk 0:02:57.8]} 8... Bg7 {[%clk 0:02:56]} 9. O-O {[%clk 0:02:57.2]} 9... O-O
{[%clk 0:02:55.2]} 10. Qd3 {[%clk 0:02:56.8]} 10... a5 {[%clk 0:02:51.1]} 11.
Bd2 {[%clk 0:02:54.8]} 11... a4 {[%clk 0:02:50.8]} 12. Kh1 {[%clk 0:02:51.7]}
12... Nd7 {[%clk 0:02:48.7]} 13. Qg3 {[%clk 0:02:48.2]} 13... Nc5 {[%clk
0:02:42.2]} 14. f3 {[%clk 0:02:44.3]} 14... Be6 {[%clk 0:02:38.4]} 15. Rab1
{[%clk 0:02:43.3]} 15... Qb6 {[%clk 0:02:32.5]} 16. Qh4 {[%clk 0:02:39.7]} 16...
Bf6 {[%clk 0:02:26.2]} 17. Bg5 {[%clk 0:02:33.5]} 17... Bxg5 {[%clk 0:02:26.3]}
18. Qxg5 {[%clk 0:02:34.4]} 18... Qc7 {[%clk 0:02:19.1]} 19. f4 {[%clk
0:02:31.1]} 19... f6 {[%clk 0:02:17.1]} 20. Qg3 {[%clk 0:02:30.9]} 20... Kh8
{[%clk 0:02:02.2]} 21. Rbd1 {[%clk 0:02:29.6]} 21... Nd7 {[%clk 0:02:01.2]} 22.
Nb5 {[%clk 0:02:24.8]} 22... Qc5 {[%clk 0:01:57.1]} 23. Rc1 {[%clk 0:02:16.9]}
23... Rac8 {[%clk 0:01:43.9]} 24. Qd3 {[%clk 0:02:15.4]} 24... Qb4 {[%clk
0:01:40]} 25. Nd4 {[%clk 0:02:09.6]} 25... Bf7 {[%clk 0:01:38.3]} 26. b3 {[%clk
0:01:57.8]} 26... axb3 {[%clk 0:01:37.4]} 27. axb3 {[%clk 0:01:57.2]} 27... Nc5
{[%clk 0:01:36.2]} 28. Qe3 {[%clk 0:01:51.5]} 28... Ra8 {[%clk 0:01:33.3]} 29.
e5 {[%clk 0:01:49.8]} 29... Kg7 {[%clk 0:00:55.1]} 30. h4 {[%clk 0:01:45.3]}
30... Ra3 {[%clk 0:00:49.3]} 31. Rb1 {[%clk 0:01:28.5]} 31... Bxc4 {[%clk
0:00:27]} 32. exd6 {[%clk 0:01:12.9]} 32... Bxe2 {[%clk 0:00:16.3]} 33. dxe7
{[%clk 0:01:09.4]} 33... Re8 {[%clk 0:00:15]} 34. Nxe2 {[%clk 0:01:03.6]} 34...
Nxb3 {[%clk 0:00:12.9]} 35. Ng3 {[%clk 0:00:40.9]} 35... Rxe7 {[%clk 0:00:12.6]}
36. Qf3 {[%clk 0:00:41.5]} 36... Qa4 {[%clk 0:00:07.1]} 37. Qg4 {[%clk
0:00:39.2]} 37... Qa5 {[%clk 0:00:04.4]} 38. f5 {[%clk 0:00:33.6]} 38... Ra4
{[%clk 0:00:04.3]} 39. Nh5+ {[%clk 0:00:32.2]} 39... Kf7 {[%clk 0:00:04.2]} 40.
fxg6+ {[%clk 0:00:32.2]} 40... hxg6 {[%clk 0:00:05]} 41. Rxf6+ {[%clk
0:00:32.2]} 41... Ke8 {[%clk 0:00:04.8]} 42. Qxg6+ {[%clk 0:00:31.8]} 42... Kd7
{[%clk 0:00:05.2]} 43. Qd3+ {[%clk 0:00:19.7]} 43... Nd4 {[%clk 0:00:03.7]} 44.
Ng3 {[%clk 0:00:06.3]} 44... Qd5 {[%clk 0:00:02.7]} 45. Rf4 {[%clk 0:00:05.1]}
1-0

[Event "Early-Titled-Tuesday-Blitz-February-13-2024"]
[Site "Chess.com"]
[Date "2024.02.13"]
[Round "10"]
[White "Kotofeyca"]
[Black "Kostukov_Alex"]
[Result "1-0"]
[WhiteElo "2400"]
[BlackElo "2253"]
[TimeControl "180+1"]
[EndTime "9:59:41 PST"]
[Termination "Kotofeyca won on time"]

1. d4 {[%clk 0:03:00.9]} 1... g6 {[%clk 0:02:57.1]} 2. c4 {[%clk 0:03:00.4]}
2... Bg7 {[%clk 0:02:57.6]} 3. Nc3 {[%clk 0:03:01.1]} 3... d6 {[%clk 0:02:58.1]}
4. e4 {[%clk 0:03:01.3]} 4... e5 {[%clk 0:02:58.5]} 5. Nge2 {[%clk 0:02:59.8]}
5... exd4 {[%clk 0:02:58.7]} 6. Nxd4 {[%clk 0:02:59.6]} 6... Nc6 {[%clk
0:02:59.1]} 7. Be3 {[%clk 0:02:59.9]} 7... Nge7 {[%clk 0:02:59.1]} 8. Be2 {[%clk
0:03:00.3]} 8... O-O {[%clk 0:02:59.6]} 9. O-O {[%clk 0:03:00]} 9... f5 {[%clk
0:02:59.5]} 10. Nxc6 {[%clk 0:03:00.3]} 10... bxc6 {[%clk 0:02:59.4]} 11. Qd2
{[%clk 0:02:57.6]} 11... fxe4 {[%clk 0:02:43.4]} 12. Nxe4 {[%clk 0:02:55.9]}
12... Nf5 {[%clk 0:02:43.7]} 13. Bg5 {[%clk 0:02:53.1]} 13... Qe8 {[%clk
0:02:43.6]} 14. Bd3 {[%clk 0:02:21.1]} 14... Be6 {[%clk 0:02:34.5]} 15. Rae1
{[%clk 0:02:16]} 15... Qf7 {[%clk 0:02:33.4]} 16. b3 {[%clk 0:02:14.5]} 16... c5
{[%clk 0:02:17.5]} 17. Nc3 {[%clk 0:01:35.3]} 17... h6 {[%clk 0:02:01.5]} 18.
Bf4 {[%clk 0:01:32.3]} 18... g5 {[%clk 0:01:59]} 19. Bg3 {[%clk 0:01:01]} 19...
Rae8 {[%clk 0:01:55]} 20. Be4 {[%clk 0:00:49]} 20... Nd4 {[%clk 0:01:40.3]} 21.
Bd5 {[%clk 0:00:41.8]} 21... c6 {[%clk 0:01:21]} 22. Bxe6 {[%clk 0:00:41.1]}
22... Rxe6 {[%clk 0:01:21.1]} 23. Rxe6 {[%clk 0:00:41.2]} 23... Qxe6 {[%clk
0:01:21.7]} 24. Re1 {[%clk 0:00:41.3]} 24... Qg6 {[%clk 0:01:14.8]} 25. Ne4
{[%clk 0:00:39.3]} 25... Rd8 {[%clk 0:00:43.9]} 26. Qa5 {[%clk 0:00:38.9]} 26...
Re8 {[%clk 0:00:28.5]} 27. Nxd6 {[%clk 0:00:33.5]} 27... Rxe1+ {[%clk 0:00:25]}
28. Qxe1 {[%clk 0:00:34.4]} 28... h5 {[%clk 0:00:15.4]} 29. Qe8+ {[%clk
0:00:27]} 29... Kh7 {[%clk 0:00:13.3]} 30. Qxg6+ {[%clk 0:00:22.1]} 30... Kxg6
{[%clk 0:00:14.2]} 31. Nb7 {[%clk 0:00:21.9]} 31... Bf8 {[%clk 0:00:10.5]} 32.
Bb8 {[%clk 0:00:18]} 32... a6 {[%clk 0:00:10]} 33. Ba7 {[%clk 0:00:17.7]} 33...
Ne2+ {[%clk 0:00:09.8]} 34. Kf1 {[%clk 0:00:17.4]} 34... Nc3 {[%clk 0:00:10.7]}
35. Bxc5 {[%clk 0:00:15.6]} 35... Bxc5 {[%clk 0:00:09.3]} 36. Nxc5 {[%clk
0:00:16.5]} 36... Nxa2 {[%clk 0:00:10]} 37. Nxa6 {[%clk 0:00:16.4]} 37... Nc1
{[%clk 0:00:10.2]} 38. Nc5 {[%clk 0:00:16.4]} 38... Kf5 {[%clk 0:00:09]} 39. Ke1
{[%clk 0:00:17]} 39... Na2 {[%clk 0:00:08.2]} 40. Nd3 {[%clk 0:00:14.4]} 40...
Ke4 {[%clk 0:00:06.5]} 41. Kd2 {[%clk 0:00:14.9]} 41... Kd4 {[%clk 0:00:03.7]}
42. Kc2 {[%clk 0:00:13.3]} 42... c5 {[%clk 0:00:02.7]} 43. f3 {[%clk 0:00:13.2]}
43... h4 {[%clk 0:00:02.6]} 44. g3 {[%clk 0:00:13.2]} 44... Ke3 {[%clk
0:00:02.8]} 45. f4 {[%clk 0:00:12.9]} 45... gxf4 {[%clk 0:00:02]} 46. gxf4
{[%clk 0:00:13.8]} 46... Ke4 {[%clk 0:00:01.1]} 47. Kb2 {[%clk 0:00:13]} 1-0